Workbook

Sheet About
B2: About this calculator
C5: Click to conctact us: | F5: Email
F6: Website
C11: Important: | E11: This workbook contains macros to improve user experience. Please make sure that macros are switched on.
E12: Macro Instructions (Courtesy of Microsoft)
C14: This calculator is a free tool designed to help Corporate Social Responsibility (CSR) teams understand how sustainable cotton purchases impact their strategic goals. It is designed for use by apparel & fashion brands selling menswear and womenswear clothing. Developed by Elementaly and distributed free of charge. Elementaly provides practical, efficient and effective specialist sustainability services. By giving bespoke advice and implementation support we help businesses track their sustainability progress, engage their employees and reach their targets.
C16: Definitions
C18: More sustainable cotton: Cotton from the Better Cotton Initiative, Cotton Made in Africa (CMiA), certified organic or certified recycled sources.
C19: This definition is reviewed on a periodic basis.
C21: Created by Elementaly. Copyright 2017, all rights reserved. This workbook is available to anyone to use as a free tool, but must not be modified or repackaged or sold in any way. The data entered in this workbook is stored for calculations only. We never collect any data from you without your explicit permission. This workbook uses macros to enhance user experience; for example automatically hiding and unhiding questions based on your responses. If you prefer a macro-free version, please contact us using the links above.

Sheet 1. Instructions
B2: 1. Instructions
C5: Click to conctact us: | F5: Email
F6: Website
C9: Sheet: Data Entry
C11: This sheet is used to collect basic information about your cotton use, which is used to calculate the weight of cotton in your products for a given year. This is used to calculate the total amount of more sustainable cotton needed to hit your target.
C13: Sheet: Forecasting
C15: This sheet is used to calculate the impact on your strategy of a purchase of products that contain more sustainable cotton. Once details of a transaction are entered, the workbook will calculate the impact this transaction has on your overall sustainable cotton target. You can use this sheet both retrospectively; to see the impact of an existing purchase, or proactively, for example to help commercial teams make decisions about purchases.
C17: Sheet: Methodology
C19: Refer to this sheet for more details on how we calculate your results and the underlying assumptions.

Sheet 2. Data Entry
B2: 2. Data Entry
C5: Click to conctact us: | F5: Email
F6: Website
C8: 1. How would you like to calculate your brand's baseline cotton use?
D9: =IF(ISBLANK(K8),"Please select an option from the drop down list","") -> Please select an option from the drop down list
D11: 1a. Total cotton use (per year)
E12: =IF(ISBLANK(K11),"Please enter a value","") -> Please enter a value
D14: 1b. What units is your cotton use measured in?
E15: =IF(ISBLANK(K14),"Please select a unit from the drop down list","") -> Please select a unit from the drop down list
D17: Guidance: Only include the weight of all types of cotton. Do not include synthetics, animal fibres etc.
D19: 1a. Total product sales (pieces per year)
E20: =IF(ISBLANK(K19),"Please enter a value","") -> Please enter a value
D22: 1b. What type of products do you typically sell?
E23: =IF(ISBLANK(K22),"Please enter a value","") -> Please enter a value
D25: 1c. Typical proportion of cotton in your textiles: | K25: 0.55
E26: =IF(ISBLANK(K25),"Please enter a value","") -> 
D28: Guidance: Include all textile products only. We assume a typical mix of 55% cotton. To change this assumption, enter a new value in the box

Sheet 3. Transaction Details
B2: 3. Transaction Details
C5: Click to conctact us: | F5: Email
F6: Website
C8: 1. For this transaction, how would you like to calculate the weight of sustainable cotton?
D9: =IF(ISBLANK(M8),"Please select an option from the drop down list","") -> Please select an option from the drop down list
C11: Using product details: Use this option if you know how many products are being purchased in the transaction and the proportion of sustainable cotton they contain Using chain of custody evidence: Use this option if you know the number of BCCUs, Kg of CMiA or Kg of organic / recycled cotton included in the transaction.
C13: 2. Select product type:
D14: =IF(ISBLANK(M13),"Please select an option from the drop down list","") -> Please select an option from the drop down list
D16: 2a. Typical sustainable cotton proportion (%)
E17: =IF(ISBLANK(M16),"Please enter a value","") -> Please enter a value
D19: 2b. Volume (units / pieces) purchased:
E20: =IF(ISBLANK(M19),"Please enter a value","") -> Please enter a value
C22: 3. What type of chain of custody evidence are you using?
C23: =IF(ISBLANK(M22),"Please enter a value","") -> Please enter a value
D25: =IF(ISBLANK(M22),"3a. Total units received","3a. Total "&M22&" received:") -> 3a. Total units received
E26: =IF(ISBLANK(M25),"Please enter a value","") -> Please enter a value
D28: 3b. Proportion of recycled or organic material:
E29: =IFERROR(IF(VLOOKUP(M22,Reference!J:L,3,FALSE)=TRUE,"Do not enter data into this cell",IF(ISBLANK(M28),"Please enter a value","")),"") -> 
D31: Check the evidence you have available to work out the number of units you can claim (for example, GOTS certificates, the Better Cotton Trader or Output Declaration Forms), or use this tool speculatively when negotiating with suppliers.
C33: 4. Results
C35: Many brands and retailers see typical transactions as having an impact of much less than 1% of their goal. This is not unusual, as progress is generally made in small increments, with individual transactions accumulating over time. Results are approximate and based on the information you have entered and our assumptions. See '4. Methodology' for more details. Results should be used to guide decision making, rather than being considered verified and wholly accurate.
D37: 4a. Percentage contribution from this transaction: | M37: =IF(ISBLANK(M8),"",Calculations!$F$39) -> 
E38: =IF(ISBLANK(M8),"",IF(Calculations!F17=0,"Please use the previous worksheet to calculate your cotton baseline","")) -> 

Sheet 4. Methodology
B2: 4. Methodology
C5: Click to conctact us: | F5: Email
F6: Website
C9: How we calculate your results
C11: Based on the data you provide, we calculate a total cotton tonnage used by your organisation for the year. We do this either by directly using the weight data you provide to us, or calculating it using the following equation:
C16: We then calculate the total use of more sustainable cotton. If you know the total amount of sustainanable cotton purchased (for example, the total Kg of organic cotton fabric), we use this figure directly, after accounting for wastage using industry standard rates, if necessary. Otherwise, we calculate the total amount of sustainable cotton from the product transaction details:
C21: The results from these two equations are used to calculate the total contribution (in %) of the transaction that you entered in the sheet
C22: 3. Transaction Details'
C27: Assumptions
C29: To simplify calculations and allow users to quickly generate results, we use industry average weights for product categories.
C30: Babywear and childrenswear are not included in the scope of this calculator.
C32: If you would like a custom version of this calculator created for your brand, please contact us using the e-mail link above.

Sheet Controllers (hidden)
A1: Data Entry | B1: =IF(ISBLANK('2. Data Entry'!K8),-1,IF('2. Data Entry'!K8="Using our known cotton use",1,0)) -> -1
A2: Forecasting | B2: =IF(ISBLANK('3. Transaction Details'!M8),-1,IF('3. Transaction Details'!M8="Using Product Details",1,0)) -> -1

Sheet Calculations (hidden)
B1: Step 1: Define Baseline Cotton Use
B3: Calculation Type: | F3: =IF(ISBLANK('2. Data Entry'!K8),-1,VLOOKUP('2. Data Entry'!K8,CalcReference!$A$2:$B$4,2,FALSE)) -> -1
B5: Weight of cotton (stated): | F5: =IF(F3=-1,0,IF(F3=1,'2. Data Entry'!K11,0)) -> 0
B6: Units: | F6: ='2. Data Entry'!K14 -> 0
B7: Conversion Factor | F7: =VLOOKUP(F6,Reference!$D:$E,2,FALSE) -> 
B8: Total Cotton Weight (t) | F8: =F7*F5 -> 
B10: Product Volume: | F10: ='2. Data Entry'!K19 -> 0
B11: Product Type: | F11: ='2. Data Entry'!K22 -> 0
B12: Typical weight (g) | F12: =VLOOKUP(F11,Reference!$H:$I,2,FALSE) ->  | G12: g
B13: Total proportion cotton: | F13: ='2. Data Entry'!K25 -> 0.55
B14: Total weight cotton (g): | F14: =F13*F12*F10 -> 
B15: Total Cotton weight (t) | F15: =F14/1000000 -> 
B17: Final Cotton Weight (t) | F17: =IFERROR(IF(F3=-1,0,IF(F3=1,F8,IF(F3=0,F15,))),0) -> 0
B19: Step 2: Define Sustainable Cotton Use
B21: Calculation Type: | F21: =IF(ISBLANK('3. Transaction Details'!M8),-1,VLOOKUP('3. Transaction Details'!M8,CalcReference!$A$7:$B$9,2,FALSE)) -> -1
B23: Sustainable product: | F23: ='3. Transaction Details'!M13 -> 0
B24: Product weight: | F24: =VLOOKUP(F23,ProductTypeWeight_Table,2,FALSE) ->  | G24: g
B25: Typical cotton %: | F25: ='3. Transaction Details'!M16 -> 0
B26: Volume purchased: | F26: ='3. Transaction Details'!M19 -> 0
B27: Total weight sustainable cotton (t) | F27: =F24*F25*F26/1000000 -> 
B29: Type of Units: | F29: ='3. Transaction Details'!M22 -> 0
B30: Volume of Units: | F30: ='3. Transaction Details'!M25 -> 0
B31: CF | F31: =VLOOKUP(F29,SustCotUnitsCF_Table,2,FALSE) -> 
B32: Weighting Factor | F32: =IF(VLOOKUP('3. Transaction Details'!$M$22,Reference!$J:$L,3,FALSE)=TRUE,1,'3. Transaction Details'!M28) -> 
B33: Final (t) sustainable cotton: | F33: =(F32*F30)/F31/1000 -> 
B35: Final sustainable cotton (t) | F35: =IFERROR(IF(F21=-1,0,IF(F21=1,F27,IF(F21=0,F33,))),0) -> 0
B37: Calculations
B39: % Sustainable Cotton | F39: =IFERROR(F35/F17,0) -> 0

Sheet CalcReference (hidden)
A1: Weight vs. Volume | B1: Code
A2: <Blank> | B2: -1
A3: =Reference!B3 -> By calculating our cotton use from sales | B3: 0
A4: =Reference!B2 -> Using our known cotton use | B4: 1
A6: Products vs. evidence
A7: <Blank> | B7: -1
A8: =Reference!C3 -> Using chain of custody evidence | B8: 0
A9: =Reference!C2 -> Using product details | B9: 1
A11: Organic/Recycled GreyedOut

Sheet Reference (hidden)
A1: Yes/No | B1: Weight vs. Volume | C1: Products vs. evidence | D1: Units | E1: Conversion to metric tonnes | F1: Product Type | G1: Product Weight | H1: Sales type | I1: Typical product weight | J1: Sustainable Cotton Units | K1: Conversion to fabric | L1: GreyedOut?
A2: Yes | B2: Using our known cotton use | C2: Using product details | D2: Kg | E2: 0.001 | F2: Casual Tops | G2: =AVERAGEIF('Industry Weights'!$C:$C,F2,'Industry Weights'!$B:$B) -> 183.4285714 | H2: We sell a mix of products | I2: =AVERAGE($G$2:$G$11) -> 331.4784765 | J2: Better Cotton Claim Units | K2: ='Supply Chain Multipliers'!B9 -> 1.633986928 | L2: TRUE
A3: No | B3: By calculating our cotton use from sales | C3: Using chain of custody evidence | D3: Metric Tonnes (t) | E3: 1 | F3: Dresses & Playsuits | G3: =AVERAGEIF('Industry Weights'!$C:$C,F3,'Industry Weights'!$B:$B) -> 284.5 | H3: Mostly lightweight (e.g. hosiery, underwear) | I3: =G11 -> 69.15384615 | J3: Kg CMiA lint | K3: =K2 -> 1.633986928 | L3: TRUE
D4: Imperial tons | E4: 1.01605 | F4: Jeans & Trousers | G4: =AVERAGEIF('Industry Weights'!$C:$C,F4,'Industry Weights'!$B:$B) -> 431.4285714 | H4: Mostly midweight (e.g. t-shirts, knitwear, shorts) | I4: =AVERAGE(G2,G3,G4,G5,G6,G8,G9,G10) -> 315.8970467 | J4: Kg organic yarn | K4: ='Supply Chain Multipliers'!F4 -> 1.633986928 | L4: FALSE
F5: Knitwear & Sweaters | G5: =AVERAGEIF('Industry Weights'!$C:$C,F5,'Industry Weights'!$B:$B) -> 405.7692308 | H5: Mostly heavyweight (e.g. outerwear) | I5: =G7 -> 718.4545455 | J5: Kg organic fabric | K5: ='Supply Chain Multipliers'!F5 -> 1.470588235 | L5: FALSE
F6: Nightwear & Gowns | G6: =AVERAGEIF('Industry Weights'!$C:$C,F6,'Industry Weights'!$B:$B) -> 439.5 | J6: Kg organic products | K6: ='Supply Chain Multipliers'!F6 -> 1 | L6: FALSE
F7: Outerwear & Jackets | G7: =AVERAGEIF('Industry Weights'!$C:$C,F7,'Industry Weights'!$B:$B) -> 718.4545455 | J7: Kg recycled yarn | K7: =K4 -> 1.633986928 | L7: FALSE
F8: Shirts & Blouses | G8: =AVERAGEIF('Industry Weights'!$C:$C,F8,'Industry Weights'!$B:$B) -> 182 | J8: Kg recycled fabric | K8: =K5 -> 1.470588235 | L8: FALSE
F9: Shorts & Skirts | G9: =AVERAGEIF('Industry Weights'!$C:$C,F9,'Industry Weights'!$B:$B) -> 226.75 | J9: Kg recycled products | K9: =K6 -> 1 | L9: FALSE
F10: Tailored Suits & Jackets | G10: =AVERAGEIF('Industry Weights'!$C:$C,F10,'Industry Weights'!$B:$B) -> 373.8
F11: Underwear & Socks | G11: =AVERAGEIF('Industry Weights'!$C:$C,F11,'Industry Weights'!$B:$B) -> 69.15384615

Sheet Supply Chain Multipliers (hidden)
A1: Supply Chain Losses Multiplier | B1: Tonnes Lint / Tonne Product | G1: Notes
A2: Supply Chain Stage (seller) | B2: Lint | C2: Yarn | D2: Fabric | E2: Garments
A3: Tier 4: Ginner [Sale of lint] | B3: 1 | C3: =B3/0.68 -> 1.470588235 | D3: =C3/0.9 -> 1.633986928 | E3: =D3 -> 1.633986928 | F3: =MAX(B3:E3) -> 1.633986928
A4: Tier 3: Spinner [Sale of yarn] | B4: 1 | C4: =B4/0.68 -> 1.470588235 | D4: =C4/0.9 -> 1.633986928 | E4: N/A | F4: =MAX(B4:E4) -> 1.633986928
A5: Tier 2: Mill [Sale of fabric] | B5: 1 | C5: =B5/0.68 -> 1.470588235 | D5: N/A | E5: =D5 -> N/A | F5: =MAX(B5:E5) -> 1.470588235
A6: Tier 1: Cut, Make & Trim [Sale of product] | B6: 1 | C6: N/A | D6: N/A | E6: =D6 -> N/A | F6: =MAX(B6:E6) -> 1
A7: Unknown | B7: 1 | C7: =B7/0.68 -> 1.470588235 | D7: =C7/0.9 -> 1.633986928 | E7: =D7 -> 1.633986928 | F7: =MAX(B7:E7) -> 1.633986928 | G7: Worst case scenario
A9: BCI Factor | B9: =MAX(F2:F7) -> 1.633986928

Sheet Industry Weights (hidden)
A1: Item | B1: Weight (grams) | C1: Category
A2: Menswear - Brief | B2: 51 | C2: Underwear & Socks
A3: Menswear - Casual Trouser | B3: 514 | C3: Jeans & Trousers
A4: Menswear - Casual Shorts | B4: 276 | C4: Shorts & Skirts
A5: Menswear - Fitted Boxer | B5: 75 | C5: Underwear & socks
A6: Menswear - Fleece Jacket | B6: 323 | C6: Outerwear & Jackets
A7: Menswear - Formal Trousers | B7: 350 | C7: Jeans & Trousers
A8: Menswear - Heavy Weight Knitwear | B8: 650 | C8: Knitwear & sweaters
A9: Menswear - Hoody | B9: 646 | C9: Knitwear & sweaters
A10: Menswear - Jackets (Main Fabric Only) | B10: 500 | C10: Outerwear & Jackets
A11: Menswear - Jean | B11: 718 | C11: Jeans & Trousers
A12: Menswear - Knickers/Pants | B12: 77 | C12: Underwear & socks
A13: Menswear - Lightweight Knitwear | B13: 283 | C13: Knitwear & sweaters
A14: Menswear - Ligthweight Shorts | B14: 164 | C14: Shorts & Skirts
A15: Menswear - Loose Fit Boxer | B15: 63 | C15: Underwear & socks
A16: Menswear - Outerwear Coats/Jackets - Heavyweight | B16: 1369 | C16: Outerwear & Jackets
A17: Menswear - Outerwear Jackets - Lightweight | B17: 701 | C17: Outerwear & Jackets
A18: Menswear - Outerwear Jackets - Midweight | B18: 927 | C18: Outerwear & Jackets
A19: Menswear - Polo Shirt | B19: 229 | C19: Casual tops
A20: Menswear - Pyjamas Heavyweight | B20: 493 | C20: Nightwear & Gowns
A21: Menswear - Pyjamas Lightweight | B21: 358 | C21: Nightwear & Gowns
A22: Menswear - Rugby Tops | B22: 442 | C22: Knitwear & sweaters
A23: Menswear - Socks | B23: 36 | C23: Underwear & socks
A24: Menswear - Suit Jacket (Main Fabric Only) | B24: 500 | C24: Tailored Suits & Jackets
A25: Menswear - Suit Trouser | B25: 402 | C25: Tailored Suits & Jackets
A26: Menswear - Sweat Top | B26: 500 | C26: Knitwear & Sweaters
A27: Menswear - Tee Shirt Long Sleeve | B27: 258 | C27: Casual tops
A28: Menswear - Tee Shirt Short Sleeve | B28: 266 | C28: Casual tops
A29: Menswear - Underwear Vests | B29: 103 | C29: Underwear & Socks
A30: Menswear - Woven Formal/Casual Shirt Ss | B30: 225 | C30: Shirts & Blouses
A31: Menswear - Woven Formal/Casual Shirt Ls | B31: 243 | C31: Shirts & Blouses
A32: Womenswear - Bras - Lace Underwired | B32: 80 | C32: Underwear & socks
A33: Womenswear - Bras - Nonwired | B33: 39 | C33: Underwear & socks
A34: Womenswear - Bras - Padded Underwired | B34: 112 | C34: Underwear & socks
A35: Womenswear - Cargo Trouser | B35: 243 | C35: Jeans & Trousers
A36: Womenswear - Casual Jacket | B36: 653 | C36: Outerwear & Jackets
A37: Womenswear - Casual Skirt | B37: 197 | C37: Shorts & Skirts
A38: Womenswear - Casual Trouser | B38: 364 | C38: Jeans & Trousers
A39: Womenswear - Dressing Gowns Heavy Weight | B39: 1080 | C39: Nightwear & Gowns
A40: Womenswear - Dressing Gowns Light Weight | B40: 306 | C40: Nightwear & Gowns
A41: Womenswear - Fleece Jacket | B41: 327 | C41: Outerwear & Jackets
A42: Womenswear - Formal Suit Dress (Main Fabric Only) | B42: 350 | C42: Tailored Suits & Jackets
A43: Womenswear - Heavy Tights | B43: 73 | C43: Underwear & Socks
A44: Womenswear - Hoody | B44: 489 | C44: Knitwear & sweaters
A45: Womenswear - Jean | B45: 478 | C45: Jeans & Trousers
A46: Womenswear - Jersey Nightwear | B46: 344 | C46: Nightwear & Gowns
A47: Womenswear - Jogger Pant | B47: 353 | C47: Jeans & Trousers
A48: Womenswear - Knickers/Pants | B48: 29 | C48: Underwear & Socks
A49: Womenswear - Knit Formal Top | B49: 296 | C49: Knitwear & sweaters
A50: Womenswear - Knitted Dress | B50: 255 | C50: Knitwear & sweaters
A51: Womenswear - Knitwear Heavy Knit | B51: 402 | C51: Knitwear & sweaters
A52: Womenswear - Knitwear Light Knit | B52: 226 | C52: Knitwear & sweaters
A53: Womenswear - Knitwear Summer Weight | B53: 159 | C53: Knitwear & sweaters
A54: Womenswear - Leggings | B54: 130 | C54: Underwear & Socks
A55: Womenswear - Lightweight Mac (Main Fabric Only) | B55: 362 | C55: Outerwear & Jackets
A56: Womenswear - Maxi Dress | B56: 433 | C56: Dresses & Playsuits
A57: Womenswear - Playsuit (Long) | B57: 214 | C57: Dresses & Playsuits
A58: Womenswear - Playsuit (Short) | B58: 228 | C58: Dresses & Playsuits
A59: Womenswear - Pyjamas Heavy | B59: 452 | C59: Nightwear & Gowns
A60: Womenswear - Pyjamas Light Weight | B60: 371 | C60: Nightwear & Gowns
A61: Womenswear - Slips | B61: 112 | C61: Nightwear & Gowns
A62: Womenswear - Socks | B62: 31 | C62: Underwear & Socks
A63: Womenswear - Spring Mid Weight Coat (Main Fabric Only) | B63: 633 | C63: Outerwear & Jackets
A64: Womenswear - Standard Dress | B64: 263 | C64: Dresses & Playsuits
A65: Womenswear - Sweat Jacket | B65: 495 | C65: Knitwear & sweaters
A66: Womenswear - Sweat Tops/ Rugby Tops | B66: 432 | C66: Knitwear & sweaters
A67: Womenswear - T Shirt Long Sleeve | B67: 176 | C67: Casual tops
A68: Womenswear - T Shirt Short Sleeve | B68: 140 | C68: Casual tops
A69: Womenswear - Tailored Jacket (Main Fabric Only) | B69: 300 | C69: Tailored Suits & Jackets
A70: Womenswear - Tailored Skirt | B70: 270 | C70: Shorts & Skirts
A71: Womenswear - Tailored Trousers | B71: 317 | C71: Tailored Suits & Jackets
A72: Womenswear - Thick Strap Vests | B72: 120 | C72: Casual tops
A73: Womenswear - Vests Jersey Cami | B73: 95 | C73: Casual tops
A74: Womenswear - Winter H.Weight Coat (Main Fabric Only) | B74: 1056 | C74: Outerwear & Jackets
A75: Womenswear - Winter Raincoat/Mac (Main Fabric Only) | B75: 1052 | C75: Outerwear & Jackets
A76: Womenswear - Woven Formal/Casual Shirt Long Sl | B76: 130 | C76: Shirts & Blouses
A77: Womenswear - Woven Formal/Casual Shirt Short Sl | B77: 130 | C77: Shirts & Blouses
